[Event "Najdorf Memorial-B 2022"]
[Site "Warsaw"]
[Date "2022.07.15"]
[Round "7.1"]
[White "Bubien, Antoni"]
[Black "Terkiewicz, Bruno"]
[Result "1-0"]
[ECO "B24"]
[WhiteElo "1472"]
[BlackElo "1473"]
[Annotator "NA"]
[PlyCount "93"]
[EventDate "2022.07.09"]
[EventType "swiss"]
[EventCountry "POL"]
[SourceTitle "playchess.com"]
[Source "ChessBase"]
[SourceQuality "1"]
[TimeControl "40/5400+30:1800+30"]

1. e4 {[%emt 0:00:05]} c5 {[%emt 0:03:41]} 2. Nc3 {[%emt 0:00:25]} Nc6 {[%emt 0:00:20]} 3. g3 {[%emt 0:00:06]} g6 {[%emt 0:00:22]} 4. Bg2 {[%emt 0:00:05]} Bg7 {[%emt 0:00:03]} 5. f4 {[%emt 0:00:05]} e6 {[%emt 0:00:12]} 6. Nf3 {[%emt 0:00:07]} Nge7 {[%emt 0:00:06]} 7. O-O {[%emt 0:00:07]} O-O {[%emt 0:00:02]} 8. d3 {[%emt 0:00:06]} d5 {[%emt 0:01:06]} 9. Kh1 {[%emt 0:01:19]} b6 {[%emt 0:00:43]} 10. Qe1 {[%emt 0:03:42]} Bb7 {[%emt 0:04:42]} 11. g4 {[%emt 0:00:43]} Nd4 {[%emt 0:02:23]} 12. Nxd4 {[%emt 0:03:08]} cxd4 {[%emt 0:08:31]} 13. f5 {[%emt 0:06:17]} exf5 {[%emt 0:07:12]} 14. exf5 {[%emt 0:00:29]} Nxf5 {[%emt 0:00:20]} 15. gxf5 {[%emt 0:01:22]} dxc3 {[%emt 0:01:30]} 16. bxc3 {[%emt 0:02:25]} Re8 {[%emt 0:02:37]} 17. Qf2 {[%emt 0:01:52]} f6 {[%emt 0:16:13]} 18. h4 {[%emt 0:09:18]} Re5 {[%emt 0:09:20]} 19. Qg3 {[%emt 0:01:32]} Qe8 {[%emt 0:00:50]} 20. Bb2 {[%emt 0:08:53]} Qf7 {[%emt 0:01:44]} 21. Rae1 {[%emt 0:05:42]} Rae8 {[%emt 0:00:43]} 22. Rxe5 {[%emt 0:00:36]} Rxe5 {[%emt 0:00:05]} 23. c4 {[%emt 0:03:27]} Re2 {[%emt 0:01:11]} 24. Qb8+ {[%emt 0:00:10]} Bf8 {[%emt 0:00:08]} 25. fxg6 {[%emt 0:05:33]} hxg6 {[%emt 0:01:10]} 26. Rxf6 {[%emt 0:01:28]} Qe7 {[%emt 0:00:11]} 27. Qg3 {[%emt 0:13:44]} d4 {[%emt 0:22:06]} 28. Rxf8+ {[%emt 0:03:47]} Kxf8 {[%emt 0:02:17]} 29. Qb8+ {[%emt 0:00:12]} Kf7 {[%emt 0:00:18]} 30. Qxb7 {[%emt 0:00:19]} Qxb7 {[%emt 0:00:24]} 31. Bxb7 {[%emt 0:00:07]} Rxc2 {[%emt 0:00:06]} 32. Bxd4 {[%emt 0:00:18]} Rxa2 {[%emt 0:00:35]} 33. c5 {[%emt 0:03:11]} Rc2 {[%emt 0:02:00]} 34. cxb6 {[%emt 0:03:14]} axb6 {[%emt 0:00:13]} 35. Bxb6 {[%emt 0:00:31]} Rc1+ {[%emt 0:00:25]} 36. Kg2 {[%emt 0:00:15]} Rb1 {[%emt 0:00:24]} 37. Bd5+ {[%emt 0:00:07]} Kf6 {[%emt 0:00:10]} 38. Bd4+ {[%emt 0:00:33]} Kf5 {[%emt 0:00:06]} 39. Kf3 {[%emt 0:00:50]} Rf1+ {[%emt 0:00:21]} 40. Kg3 {[%emt 0:00:00]} Re1 {[%emt 0:00:00]} 41. Be4+ {[%emt 0:01:49]} Rxe4 {[%emt 0:01:11]} 42. dxe4+ {[%emt 0:00:04]} Kxe4 {[%emt 0:00:05]} 43. Kg4 {[%emt 0:00:17]} Kxd4 {[%emt 0:00:20]} 44. Kg5 {[%emt 0:00:08]} Ke5 {[%emt 0:00:04]} 45. Kxg6 {[%emt 0:00:08]} Ke6 {[%emt 0:00:03]} 46. h5 {[%emt 0:00:34]} Ke7 {[%emt 0:00:03]} 47. Kg7 1-0

[Event "Najdorf Memorial-B 2022"]
[Site "Warsaw"]
[Date "2022.07.15"]
[Round "7.2"]
[White "Michalowski, Patryk"]
[Black "Piddubna, Bozhena"]
[Result "1/2-1/2"]
[ECO "C77"]
[WhiteElo "1726"]
[BlackElo "1534"]
[Annotator "NA"]
[PlyCount "72"]
[EventDate "2022.07.09"]
[EventType "swiss"]
[EventCountry "POL"]
[SourceTitle "playchess.com"]
[Source "ChessBase"]
[SourceQuality "1"]
[TimeControl "40/5400+30:1800+30"]

1. e4 {[%emt 0:00:02]} e5 {[%emt 0:00:40]} 2. Nf3 {[%emt 0:00:06]} Nc6 {[%emt 0:00:09]} 3. Bb5 {[%emt 0:00:06]} a6 {[%emt 0:00:12]} 4. Ba4 {[%emt 0:00:07]} Nf6 {[%emt 0:00:22]} 5. Nc3 {[%emt 0:00:07]} Bb4 {[%emt 0:05:19]} 6. Nd5 {[%emt 0:01:39]} Bc5 {[%emt 0:02:41]} 7. c3 {[%emt 0:03:32]} O-O {[%emt 0:05:00]} 8. d4 {[%emt 0:04:17]} exd4 {[%emt 0:00:57]} 9. cxd4 {[%emt 0:00:07]} Nxd5 {[%emt 0:16:02]} 10. dxc5 {[%emt 0:00:19]} Nf6 {[%emt 0:02:14]} 11. e5 {[%emt 0:15:58]} Qe7 {[%emt 0:05:39]} 12. Bxc6 {[%emt 0:11:35]} dxc6 {[%emt 0:00:30]} 13. Bg5 {[%emt 0:06:26]} Bg4 {[%emt 0:07:36]} 14. O-O {[%emt 0:01:35]} Bxf3 {[%emt 0:00:35]} 15. exf6 {[%emt 0:01:03]} gxf6 {[%emt 0:04:19]} 16. Qxf3 {[%emt 0:00:26]} fxg5 {[%emt 0:00:10]} 17. Qc3 {[%emt 0:04:44]} Rfe8 {[%emt 0:03:25]} 18. Rae1 {[%emt 0:02:20]} Qf8 {[%emt 0:00:50]} 19. Re5 {[%emt 0:11:50]} Qg7 {[%emt 0:04:19]} 20. Rfe1 {[%emt 0:00:11]} Rxe5 {[%emt 0:02:23]} 21. Rxe5 {[%emt 0:00:09]} Rd8 {[%emt 0:00:49]} 22. h3 {[%emt 0:01:15]} h6 {[%emt 0:00:34]} 23. Qe3 {[%emt 0:00:33]} Qf6 {[%emt 0:04:20]} 24. Re7 {[%emt 0:06:20]} Rc8 {[%emt 0:05:10]} 25. b4 {[%emt 0:03:17]} Kg7 {[%emt 0:07:58]} 26. a3 {[%emt 0:04:02]} Qf4 {[%emt 0:03:30]} 27. Qxf4 {[%emt 0:05:02]} gxf4 {[%emt 0:00:01]} 28. Re4 {[%emt 0:01:48]} Rd8 {[%emt 0:00:29]} 29. Rxf4 {[%emt 0:01:55]} Rd3 {[%emt 0:00:27]} 30. a4 {[%emt 0:00:49]} b6 {[%emt 0:03:09]} 31. Rc4 {[%emt 0:03:17]} Rb3 {[%emt 0:02:40]} 32. Kh2 {[%emt 0:02:53]} bxc5 {[%emt 0:01:23]} 33. bxc5 {[%emt 0:03:10]} a5 {[%emt 0:00:45]} 34. Rg4+ {[%emt 0:00:40]} Kf6 {[%emt 0:00:14]} 35. Rf4+ {[%emt 0:03:02]} Kg6 {[%emt 0:01:03]} 36. Rg4+ {[%emt 0:00:47]} Kf5 {[%emt 0:01:34]} 1/2-1/2

[Event "Najdorf Memorial-B 2022"]
[Site "Warsaw"]
[Date "2022.07.15"]
[Round "7.3"]
[White "Napieralski, Lucjan"]
[Black "Yasmo, Daniil"]
[Result "1/2-1/2"]
[ECO "B28"]
[WhiteElo "1414"]
[BlackElo "1680"]
[Annotator "NA"]
[PlyCount "98"]
[EventDate "2022.07.09"]
[EventType "swiss"]
[EventCountry "POL"]
[SourceTitle "playchess.com"]
[Source "ChessBase"]
[SourceQuality "1"]
[TimeControl "40/5400+30:1800+30"]

1. e4 {[%emt 0:00:02]} c5 {[%emt 0:00:11]} 2. Nf3 {[%emt 0:00:05]} a6 {[%emt 0:00:10]} 3. d4 {[%emt 0:01:32]} cxd4 {[%emt 0:00:13]} 4. Nxd4 {[%emt 0:00:06]} Nf6 {[%emt 0:00:04]} 5. Bd3 {[%emt 0:01:02]} Nc6 {[%emt 0:00:51]} 6. Nxc6 {[%emt 0:00:40]} bxc6 {[%emt 0:00:31]} 7. c4 {[%emt 0:00:11]} e5 {[%emt 0:00:29]} 8. Nc3 {[%emt 0:00:31]} Bb4 {[%emt 0:01:29]} 9. O-O {[%emt 0:01:12]} O-O {[%emt 0:00:38]} 10. a3 {[%emt 0:00:20]} Bxc3 {[%emt 0:00:28]} 11. bxc3 {[%emt 0:00:08]} d6 {[%emt 0:01:03]} 12. Kh1 {[%emt 0:05:18]} Nd7 {[%emt 0:02:13]} 13. Bc2 {[%emt 0:03:17]} Nc5 {[%emt 0:00:41]} 14. Be3 {[%emt 0:01:28]} Be6 {[%emt 0:00:52]} 15. Qe2 {[%emt 0:05:48]} Qa5 {[%emt 0:02:42]} 16. Bd2 {[%emt 0:01:43]} Rab8 {[%emt 0:01:31]} 17. f4 {[%emt 0:07:46]} Rb2 {[%emt 0:02:40]} 18. Rfc1 {[%emt 0:07:28]} f6 {[%emt 0:02:27]} 19. h4 {[%emt 0:05:45]} Rfb8 {[%emt 0:01:05]} 20. h5 {[%emt 0:02:19]} exf4 {[%emt 0:01:11]} 21. Bxf4 {[%emt 0:02:13]} Nb3 {[%emt 0:00:26]} 22. Bxd6 {[%emt 0:02:34]} Nxc1 {[%emt 0:00:24]} 23. Rxc1 {[%emt 0:00:26]} Rd8 {[%emt 0:00:44]} 24. Bb4 {[%emt 0:11:27]} Qg5 {[%emt 0:02:17]} 25. Rd1 {[%emt 0:02:29]} Re8 {[%emt 0:00:08]} 26. Qd3 {[%emt 0:12:43]} Qxh5+ {[%emt 0:00:43]} 27. Kg1 {[%emt 0:00:12]} c5 {[%emt 0:01:31]} 28. Ba5 {[%emt 0:01:46]} Qf7 {[%emt 0:00:44]} 29. e5 {[%emt 0:07:17]} f5 {[%emt 0:00:17]} 30. Ba4 {[%emt 0:04:40]} Rf8 {[%emt 0:00:57]} 31. Qd6 {[%emt 0:00:52]} f4 {[%emt 0:06:46]} 32. Bc6 {[%emt 0:01:09]} Bxc4 {[%emt 0:01:37]} 33. Qxc5 {[%emt 0:01:17]} Be6 {[%emt 0:01:31]} 34. Bb4 {[%emt 0:01:00]} Rc8 {[%emt 0:02:30]} 35. Qd6 {[%emt 0:01:01]} Kh8 {[%emt 0:01:49]} 36. Be4 {[%emt 0:03:18]} Rg8 {[%emt 0:04:24]} 37. Qxa6 {[%emt 0:00:58]} f3 {[%emt 0:02:33]} 38. Bxf3 {[%emt 0:01:37]} Bg4 {[%emt 0:00:05]} 39. Qf1 {[%emt 0:02:39]} Qa7+ {[%emt 0:01:22]} 40. Kh1 {[%emt 0:00:00]} Rf2 {[%emt 0:00:00]} 41. Bxg4 {[%emt 0:20:53]} Rxf1+ {[%emt 0:01:13]} 42. Rxf1 {[%emt 0:00:03]} Qa6 {[%emt 0:01:37]} 43. Rd1 {[%emt 0:13:24]} Qc4 {[%emt 0:01:20]} 44. Rd4 {[%emt 0:00:24]} Qf1+ {[%emt 0:00:06]} 45. Kh2 {[%emt 0:00:02]} h5 {[%emt 0:02:20]} 46. Bh3 g5 47. Be7 g4 48. Bf6+ Kh7 49. Rd7+ Kg6 1/2-1/2

[Event "Najdorf Memorial-B 2022"]
[Site "Warsaw"]
[Date "2022.07.15"]
[Round "7.4"]
[White "Dysko, Michal"]
[Black "Slusarczyk, Anna"]
[Result "1/2-1/2"]
[ECO "B77"]
[WhiteElo "1376"]
[BlackElo "1637"]
[Annotator "NA"]
[PlyCount "45"]
[EventDate "2022.07.09"]
[EventType "swiss"]
[EventCountry "POL"]
[SourceTitle "playchess.com"]
[Source "ChessBase"]
[SourceQuality "1"]
[TimeControl "40/5400+30:1800+30"]

1. e4 {[%emt 0:00:11]} c5 {[%emt 0:00:03]} 2. Nf3 {[%emt 0:00:14]} d6 {[%emt 0:01:10]} 3. d4 {[%emt 0:00:05]} cxd4 {[%emt 0:00:04]} 4. Nxd4 {[%emt 0:00:09]} Nc6 {[%emt 0:00:09]} 5. Nc3 {[%emt 0:00:31]} g6 {[%emt 0:01:53]} 6. f3 {[%emt 0:02:05]} Nf6 {[%emt 0:01:40]} 7. Bc4 {[%emt 0:00:01]} Bg7 {[%emt 0:05:43]} 8. Be3 {[%emt 0:00:06]} O-O {[%emt 0:01:10]} 9. Qd2 {[%emt 0:00:04]} a6 {[%emt 0:04:45]} 10. O-O-O {[%emt 0:01:00]} Ne5 {[%emt 0:10:22]} 11. Be2 {[%emt 0:03:50]} Qc7 {[%emt 0:07:42]} 12. h4 {[%emt 0:03:14]} b5 {[%emt 0:24:13]} 13. Bh6 {[%emt 0:05:32]} e6 {[%emt 0:13:36]} 14. h5 {[%emt 0:28:51]} Rb8 {[%emt 0:08:44]} 15. g4 {[%emt 0:06:24]} Nc4 {[%emt 0:01:15]} 16. Bxc4 {[%emt 0:02:17]} bxc4 {[%emt 0:00:12]} 17. Bxg7 {[%emt 0:03:16]} Qb7 {[%emt 0:04:00]} 18. b3 {[%emt 0:00:48]} Kxg7 {[%emt 0:00:20]} 19. hxg6 {[%emt 0:04:32]} fxg6 {[%emt 0:00:16]} 20. Qh6+ {[%emt 0:04:15]} Kg8 {[%emt 0:00:20]} 21. Nde2 {[%emt 0:16:32]} Qc7 {[%emt 0:08:53]} 22. Kb2 {[%emt 0:00:48]} Rf7 {[%emt 0:00:20]} 23. Qe3 {[%emt 0:03:43]} 1/2-1/2

[Event "Najdorf Memorial-B 2022"]
[Site "Warsaw"]
[Date "2022.07.15"]
[Round "7.5"]
[White "Tsiapko, Andrii"]
[Black "Prokopiuk, Jakub"]
[Result "1/2-1/2"]
[ECO "A48"]
[WhiteElo "1538"]
[BlackElo "1481"]
[Annotator "NA"]
[PlyCount "52"]
[EventDate "2022.07.09"]
[EventType "swiss"]
[EventCountry "POL"]
[SourceTitle "playchess.com"]
[Source "ChessBase"]
[SourceQuality "1"]
[TimeControl "40/5400+30:1800+30"]

1. d4 {[%emt 0:00:03]} Nf6 {[%emt 0:00:08]} 2. Nf3 {[%emt 0:00:14]} g6 {[%emt 0:00:11]} 3. Nbd2 {[%emt 0:00:24]} Bg7 {[%emt 0:01:47]} 4. e4 {[%emt 0:00:29]} d6 {[%emt 0:00:13]} 5. Bc4 {[%emt 0:00:33]} O-O {[%emt 0:01:00]} 6. O-O {[%emt 0:00:26]} c5 {[%emt 0:05:53]} 7. dxc5 {[%emt 0:01:23]} dxc5 {[%emt 0:00:43]} 8. e5 {[%emt 0:00:51]} Ng4 {[%emt 0:11:43]} 9. e6 {[%emt 0:09:16]} f5 {[%emt 0:04:09]} 10. Qe2 {[%emt 0:17:45]} a6 {[%emt 0:03:31]} 11. a4 {[%emt 0:03:18]} Qc7 {[%emt 0:03:05]} 12. c3 {[%emt 0:15:02]} Nc6 {[%emt 0:07:55]} 13. Nb3 {[%emt 0:04:50]} Nce5 {[%emt 0:04:03]} 14. Bf4 {[%emt 0:04:05]} Nxf3+ {[%emt 0:12:18]} 15. Qxf3 {[%emt 0:00:32]} Be5 {[%emt 0:05:33]} 16. Bxe5 {[%emt 0:01:40]} Qxe5 {[%emt 0:00:04]} 17. g3 {[%emt 0:01:11]} Rb8 {[%emt 0:02:08]} 18. Rfe1 {[%emt 0:02:10]} Qc7 {[%emt 0:01:12]} 19. Qf4 {[%emt 0:11:16]} Qxf4 {[%emt 0:01:22]} 20. gxf4 {[%emt 0:00:06]} b5 {[%emt 0:02:58]} 21. axb5 {[%emt 0:00:40]} axb5 {[%emt 0:00:01]} 22. Bd5 {[%emt 0:02:32]} Nf6 {[%emt 0:02:50]} 23. Bf3 {[%emt 0:00:49]} c4 {[%emt 0:01:24]} 24. Nd4 {[%emt 0:01:51]} Bb7 {[%emt 0:00:38]} 25. Kg2 {[%emt 0:03:36]} Bxf3+ {[%emt 0:00:17]} 26. Kxf3 {[%emt 0:00:12]} Rb7 {[%emt 0:01:40]} 1/2-1/2

[Event "Najdorf Memorial-B 2022"]
[Site "Warsaw"]
[Date "2022.07.15"]
[Round "7.6"]
[White "Leszczewicz, Karol"]
[Black "Nawalaniec, Adam"]
[Result "0-1"]
[ECO "B06"]
[WhiteElo "1519"]
[BlackElo "1768"]
[Annotator "NA"]
[PlyCount "118"]
[EventDate "2022.07.09"]
[EventType "swiss"]
[EventCountry "POL"]
[SourceTitle "playchess.com"]
[Source "ChessBase"]
[SourceQuality "1"]
[TimeControl "40/5400+30:1800+30"]

1. d4 {[%emt 0:00:02]} d6 {[%emt 0:00:17]} 2. Nf3 {[%emt 0:00:59]} g6 {[%emt 0:00:46]} 3. e4 {[%emt 0:00:44]} Bg7 {[%emt 0:00:31]} 4. c4 {[%emt 0:00:25]} Bg4 {[%emt 0:00:40]} 5. Be2 {[%emt 0:00:18]} Nd7 {[%emt 0:01:25]} 6. h3 {[%emt 0:01:05]} Bxf3 {[%emt 0:00:33]} 7. Bxf3 {[%emt 0:00:10]} c5 {[%emt 0:03:06]} 8. d5 {[%emt 0:03:10]} Ngf6 {[%emt 0:08:33]} 9. Nc3 {[%emt 0:01:17]} O-O {[%emt 0:02:00]} 10. O-O {[%emt 0:00:21]} Ne8 {[%emt 0:09:07]} 11. Qc2 {[%emt 0:28:10]} Nc7 {[%emt 0:04:34]} 12. Be2 {[%emt 0:13:30]} a6 {[%emt 0:03:13]} 13. Rb1 {[%emt 0:00:43]} b5 {[%emt 0:09:20]} 14. b3 {[%emt 0:08:06]} Rb8 {[%emt 0:09:01]} 15. Bb2 {[%emt 0:05:46]} Nb6 {[%emt 0:11:37]} 16. Nd1 {[%emt 0:01:07]} Qd7 {[%emt 0:09:11]} 17. Bxg7 {[%emt 0:01:46]} Kxg7 {[%emt 0:00:01]} 18. Bd3 {[%emt 0:01:11]} bxc4 {[%emt 0:04:36]} 19. bxc4 {[%emt 0:00:33]} Qa4 {[%emt 0:02:03]} 20. Ne3 {[%emt 0:00:20]} Qxc2 {[%emt 0:03:40]} 21. Bxc2 {[%emt 0:00:08]} Rb7 {[%emt 0:03:13]} 22. Rb2 {[%emt 0:00:29]} Rbb8 {[%emt 0:02:55]} 23. Rfb1 {[%emt 0:01:11]} Nd7 {[%emt 0:00:26]} 24. Rb7 {[%emt 0:04:06]} Rbc8 {[%emt 0:02:19]} 25. Ba4 {[%emt 0:00:37]} Rfd8 {[%emt 0:00:14]} 26. Bxd7 {[%emt 0:01:09]} Rxd7 {[%emt 0:00:01]} 27. Ra7 {[%emt 0:00:32]} Ra8 {[%emt 0:01:20]} 28. Rbb7 {[%emt 0:02:42]} Rxa7 {[%emt 0:00:03]} 29. Rxa7 {[%emt 0:00:06]} Kf8 {[%emt 0:00:07]} 30. Nd1 {[%emt 0:00:13]} Ke8 {[%emt 0:00:04]} 31. Nc3 {[%emt 0:00:14]} Kd8 {[%emt 0:00:08]} 32. Na4 {[%emt 0:00:44]} Kc8 {[%emt 0:00:07]} 33. Nb6+ {[%emt 0:00:32]} Kb8 {[%emt 0:00:03]} 34. Nxd7+ {[%emt 0:01:39]} Kxa7 {[%emt 0:00:01]} 35. e5 {[%emt 0:00:11]} Na8 {[%emt 0:10:44]} 36. g4 {[%emt 0:12:35]} Nb6 {[%emt 0:01:22]} 37. Nxb6 {[%emt 0:00:34]} Kxb6 {[%emt 0:00:01]} 38. f4 {[%emt 0:01:43]} f6 {[%emt 0:00:01]} 39. exd6 {[%emt 0:01:23]} exd6 {[%emt 0:00:30]} 40. Kf2 {[%emt 0:00:00]} Ka5 {[%emt 0:00:00]} 41. Ke3 {[%emt 0:06:19]} Kb4 {[%emt 0:00:37]} 42. Kd3 {[%emt 0:00:22]} g5 {[%emt 0:02:18]} 43. fxg5 {[%emt 0:00:49]} fxg5 {[%emt 0:00:02]} 44. a3+ {[%emt 0:00:19]} Kxa3 {[%emt 0:00:10]} 45. Ke4 {[%emt 0:00:33]} Kb4 {[%emt 0:00:33]} 46. Kf5 {[%emt 0:00:07]} a5 {[%emt 0:00:07]} 47. Ke6 {[%emt 0:00:31]} a4 {[%emt 0:00:06]} 48. Kxd6 {[%emt 0:00:14]} a3 {[%emt 0:00:05]} 49. Ke7 {[%emt 0:00:06]} a2 {[%emt 0:00:06]} 50. d6 {[%emt 0:00:04]} a1=Q {[%emt 0:00:06]} 51. d7 {[%emt 0:00:06]} Qe5+ {[%emt 0:00:10]} 52. Kf7 {[%emt 0:00:14]} Qd6 {[%emt 0:00:06]} 53. Ke8 {[%emt 0:00:18]} Qe6+ {[%emt 0:00:11]} 54. Kd8 {[%emt 0:00:06]} Ka5 {[%emt 0:00:15]} 55. Kc7 {[%emt 0:00:11]} Qb6+ {[%emt 0:00:07]} 56. Kc8 {[%emt 0:00:09]} Ka6 {[%emt 0:00:09]} 57. d8=N {[%emt 0:00:24]} Qd6 {[%emt 0:00:20]} 58. Nf7 {[%emt 0:00:45]} Qe7 {[%emt 0:00:18]} 59. Nd8 {[%emt 0:00:12]} Kb6 {[%emt 0:00:07]} 0-1

[Event "Najdorf Memorial-B 2022"]
[Site "Warsaw"]
[Date "2022.07.15"]
[Round "7.7"]
[White "Krogulski, Maksymilian"]
[Black "Morczynski, Joachim"]
[Result "1/2-1/2"]
[ECO "B22"]
[WhiteElo "1584"]
[BlackElo "1762"]
[Annotator "NA"]
[PlyCount "122"]
[EventDate "2022.07.09"]
[EventType "swiss"]
[EventCountry "POL"]
[SourceTitle "playchess.com"]
[Source "ChessBase"]
[SourceQuality "1"]
[TimeControl "40/5400+30:1800+30"]

1. e4 {[%emt 0:03:52]} c5 {[%emt 0:00:07]} 2. c3 {[%emt 0:00:03]} d5 {[%emt 0:01:12]} 3. exd5 {[%emt 0:00:57]} Qxd5 {[%emt 0:00:09]} 4. d4 {[%emt 0:00:06]} Bf5 {[%emt 0:02:21]} 5. Na3 {[%emt 0:00:12]} Nc6 {[%emt 0:02:21]} 6. Nf3 {[%emt 0:00:44]} cxd4 {[%emt 0:02:55]} 7. Nxd4 {[%emt 0:01:48]} Nxd4 {[%emt 0:10:37]} 8. Qxd4 {[%emt 0:00:44]} Qxd4 {[%emt 0:02:29]} 9. cxd4 {[%emt 0:00:01]} Nf6 {[%emt 0:03:31]} 10. Nb5 {[%emt 0:00:42]} Kd7 {[%emt 0:00:53]} 11. Bc4 {[%emt 0:02:01]} e6 {[%emt 0:00:58]} 12. a3 {[%emt 0:03:34]} a6 {[%emt 0:05:29]} 13. Nc3 {[%emt 0:00:22]} Rc8 {[%emt 0:00:09]} 14. Be2 {[%emt 0:00:12]} Ne4 {[%emt 0:08:35]} 15. Nxe4 {[%emt 0:00:33]} Bxe4 {[%emt 0:00:08]} 16. f3 {[%emt 0:00:13]} Bd5 {[%emt 0:00:28]} 17. Bd2 {[%emt 0:00:15]} Be7 {[%emt 0:01:37]} 18. Bc3 {[%emt 0:00:25]} Bc4 {[%emt 0:01:02]} 19. Bd1 {[%emt 0:02:31]} Bf6 {[%emt 0:01:20]} 20. Bc2 {[%emt 0:01:49]} Bg5 {[%emt 0:04:54]} 21. Kf2 {[%emt 0:01:22]} f5 {[%emt 0:03:35]} 22. Rad1 {[%emt 0:01:40]} Ke7 {[%emt 0:01:02]} 23. Rhe1 {[%emt 0:06:15]} Kf7 {[%emt 0:00:29]} 24. Ba4 {[%emt 0:07:39]} Rhd8 {[%emt 0:02:04]} 25. Ba5 {[%emt 0:04:07]} Rd5 {[%emt 0:01:20]} 26. Bc3 {[%emt 0:14:47]} Bf6 {[%emt 0:03:23]} 27. Ke3 {[%emt 0:04:14]} b5 {[%emt 0:01:12]} 28. Bc2 {[%emt 0:00:34]} g5 {[%emt 0:02:05]} 29. g3 {[%emt 0:00:52]} h5 {[%emt 0:03:30]} 30. f4 {[%emt 0:01:14]} Rd7 {[%emt 0:04:56]} 31. Rd2 {[%emt 0:11:53]} Rg8 {[%emt 0:02:32]} 32. Bd1 {[%emt 0:01:30]} h4 {[%emt 0:07:35]} 33. Bh5+ {[%emt 0:04:09]} Ke7 {[%emt 0:00:11]} 34. Bf3 {[%emt 0:03:04]} hxg3 {[%emt 0:03:53]} 35. hxg3 {[%emt 0:00:38]} gxf4+ {[%emt 0:00:54]} 36. gxf4 {[%emt 0:00:01]} Rg3 {[%emt 0:00:31]} 37. Kf2 {[%emt 0:11:00]} Bh4 {[%emt 0:05:58]} 38. Rh1 {[%emt 0:01:25]} Rh3+ {[%emt 0:03:14]} 39. Ke3 {[%emt 0:01:31]} Rxf3+ {[%emt 0:02:29]} 40. Kxf3 {[%emt 0:00:00]} Bd5+ {[%emt 0:00:00]} 41. Ke3 {[%emt 0:00:14]} Bxh1 {[%emt 0:00:16]} 42. Rh2 {[%emt 0:00:07]} Be4 {[%emt 0:00:24]} 43. Rxh4 {[%emt 0:00:18]} Kd6 {[%emt 0:00:33]} 44. Rh8 {[%emt 0:10:41]} Rg7 {[%emt 0:01:03]} 45. Rd8+ {[%emt 0:01:25]} Kc7 {[%emt 0:09:02]} 46. Ba5+ {[%emt 0:00:24]} Kb7 {[%emt 0:00:20]} 47. d5 {[%emt 0:03:06]} Bxd5 {[%emt 0:05:20]} 48. Kd4 {[%emt 0:00:24]} Rg2 {[%emt 0:02:22]} 49. Bc3 {[%emt 0:00:47]} Re2 {[%emt 0:01:04]} 50. Kc5 {[%emt 0:01:34]} Re4 {[%emt 0:01:06]} 51. Be5 {[%emt 0:00:18]} Rc4+ {[%emt 0:02:11]} 52. Kd6 {[%emt 0:00:01]} b4 {[%emt 0:06:40]} 53. axb4 {[%emt 0:01:30]} Rxb4 {[%emt 0:00:21]} 54. Ke7 {[%emt 0:00:44]} Re4 {[%emt 0:02:37]} 55. Rd7+ {[%emt 0:01:15]} Kb6 {[%emt 0:01:30]} 56. Rd6+ {[%emt 0:01:59]} Kb5 {[%emt 0:00:27]} 57. Rxe6 {[%emt 0:01:52]} Bxe6 {[%emt 0:00:56]} 58. Kxe6 {[%emt 0:00:02]} a5 {[%emt 0:01:31]} 59. Kxf5 {[%emt 0:00:05]} Rxf4+ {[%emt 0:02:59]} 60. Kxf4 {[%emt 0:00:15]} Kb4 {[%emt 0:00:17]} 61. Bd6+ {[%emt 0:00:48]} Kb3 {[%emt 0:03:04]} 1/2-1/2

[Event "Najdorf Memorial-B 2022"]
[Site "Warsaw"]
[Date "2022.07.15"]
[Round "7.8"]
[White "Trochimczuk, Szymon"]
[Black "Nocek, Dominik"]
[Result "1/2-1/2"]
[ECO "A79"]
[WhiteElo "1480"]
[BlackElo "1682"]
[Annotator "NA"]
[PlyCount "70"]
[EventDate "2022.07.09"]
[EventType "swiss"]
[EventCountry "POL"]
[SourceTitle "playchess.com"]
[Source "ChessBase"]
[SourceQuality "1"]
[TimeControl "40/5400+30:1800+30"]

1. d4 {[%emt 0:00:01]} Nf6 {[%emt 0:00:07]} 2. c4 {[%emt 0:00:03]} c5 {[%emt 0:00:07]} 3. d5 {[%emt 0:00:04]} d6 {[%emt 0:00:07]} 4. Nc3 {[%emt 0:00:12]} g6 {[%emt 0:00:10]} 5. e4 {[%emt 0:01:13]} Bg7 {[%emt 0:00:12]} 6. Be2 {[%emt 0:01:20]} O-O {[%emt 0:05:25]} 7. Nf3 {[%emt 0:00:46]} e6 {[%emt 0:00:22]} 8. Nd2 {[%emt 0:00:45]} exd5 {[%emt 0:00:26]} 9. cxd5 {[%emt 0:00:05]} Re8 {[%emt 0:01:09]} 10. O-O {[%emt 0:00:13]} Na6 {[%emt 0:01:06]} 11. f3 {[%emt 0:01:08]} Nc7 {[%emt 0:01:02]} 12. a4 {[%emt 0:00:25]} b6 {[%emt 0:01:59]} 13. Nc4 {[%emt 0:01:04]} Ba6 {[%emt 0:00:22]} 14. Bg5 {[%emt 0:08:06]} h6 {[%emt 0:01:54]} 15. Bf4 {[%emt 0:02:11]} Bxc4 {[%emt 0:00:50]} 16. Bxc4 {[%emt 0:00:10]} a6 {[%emt 0:05:04]} 17. Qd2 {[%emt 0:01:36]} Kh7 {[%emt 0:09:07]} 18. Rab1 {[%emt 0:00:23]} Qd7 {[%emt 0:02:53]} 19. b4 {[%emt 0:05:44]} b5 {[%emt 0:00:34]} 20. Ba2 {[%emt 0:06:59]} c4 {[%emt 0:14:11]} 21. a5 {[%emt 0:01:35]} Nh5 {[%emt 0:11:21]} 22. Be3 {[%emt 0:11:47]} f5 {[%emt 0:03:33]} 23. Bd4 {[%emt 0:02:00]} Nf6 {[%emt 0:02:53]} 24. Rbe1 {[%emt 0:02:11]} fxe4 {[%emt 0:04:03]} 25. fxe4 {[%emt 0:00:55]} Ng4 {[%emt 0:01:48]} 26. Bb1 {[%emt 0:07:44]} Ne5 {[%emt 0:00:45]} 27. Ne2 {[%emt 0:04:28]} Rf8 {[%emt 0:05:36]} 28. Bf2 {[%emt 0:08:16]} Rf7 {[%emt 0:04:54]} 29. Bg3 {[%emt 0:04:16]} Raf8 {[%emt 0:01:44]} 30. Rxf7 {[%emt 0:03:28]} Rxf7 {[%emt 0:00:45]} 31. h3 {[%emt 0:02:52]} Qe7 {[%emt 0:07:26]} 32. Nd4 {[%emt 0:07:04]} Qe8 {[%emt 0:07:41]} 33. Kh2 {[%emt 0:07:08]} Qf8 {[%emt 0:01:27]} 34. Nc6 {[%emt 0:03:24]} Qe8 {[%emt 0:02:03]} 35. Rd1 {[%emt 0:01:00]} Qh8 {[%emt 0:03:25]} 1/2-1/2